bitfinex-derivatives/quotes_ETHF0:USTF0_20250331
["timestamp","ask_amount","ask_price","bid_price","bid_amount"]
[1743393892518,5.68969,1804.3,1804.1,1.10874]
[1743393892719,4.581,1804.3,1804.1,1.10876]
[1743393892912,1.10874,1804.2,1804.0,5.67518]
[1743393893107,3.2078,1804.1,1804.0,4.93878]
[1743393894319,3.2078,1804.1,1803.7,2.78083663]
[1743393894615,2.4819,1804.3,1803.7,0.00832663]
[1743393894616,3.2078,1803.9,1803.7,0.00832663]
[1743393894823,1.4036,1803.8,1803.7,0.00832663]
[1743393895024,2.51257,1803.8,1803.7,0.00832663]
[1743393895918,1.10912,1803.6,1803.4,1.10919]
[1743393896119,3.2078,1803.5,1803.4,1.10919]
[1743393896320,3.2078,1803.5,1803.3,4.93924]
[1743393896520,3.2078,1803.5,1803.4,1.10921]
[1743393897520,4.5783,1803.5,1803.3,0.00832663]
[1743393897715,1.3705,1803.4,1803.3,1.11759663]
[1743393900628,1.3705,1803.4,1803.3,28.71759663]
[1743393901816,0.00832663,1803.6,1803.5,1.10915]
[1743393902018,0.00832663,1803.6,1803.5,4.93915]
[1743393902227,0.00832663,1803.6,1803.5,5.66755]
[1743393904022,0.00832663,1803.6,1803.5,1.83755]
[1743393904222,0.00832663,1803.6,1803.4,1.84997]
[1743393904427,1.11743663,1803.6,1803.4,1.10917]
[1743393904624,1.4673,1803.5,1803.4,1.10917]
[1743393905331,1.4673,1803.5,1803.4,4.93917]
[1743393905629,1.4673,1803.5,1803.4,6.42897]
[1743393905821,0.00832663,1803.6,1803.4,6.42897]
[1743393905822,0.00832663,1803.6,1803.5,1.10915]
[1743393906026,3.2078,1803.9,1803.8,1.10897]
[1743393906227,1.4673,1804.0,1803.9,1.1089]
[1743393906423,3.2078,1804.3,1804.2,1.1087]
[1743393907024,3.2078,1804.3,1804.2,1.8512]
[1743393907929,4.5663,1804.3,1804.2,3.2387]
[1743393908131,0.00832663,1804.4,1804.3,1.10866]
[1743393908331,0.00832663,1804.4,1804.3,3.22826]
[1743393909426,0.00832663,1804.4,1804.3,1.84076]
[1743393909625,1.36682663,1804.4,1804.3,1.84076]
[1743393909923,1.36682663,1804.4,1804.3,3.22826]
[1743393911225,1.36682663,1804.4,1804.3,1.84076]
[1743393911832,1.36682663,1804.4,1804.3,4.93866]
[1743393912237,1.36682663,1804.4,1804.3,6.38606]
[1743393912531,0.00832663,1804.4,1804.3,6.38606]
[1743393913827,1.37102663,1804.4,1804.3,6.38606]
[1743393915935,1.37102663,1804.4,1804.3,6.94046]
[1743393916933,0.00832663,1804.4,1804.3,7.3788822]
[1743393917136,0.00832663,1804.4,1804.3,9.8788822]
[1743393917338,3.9578,1804.9,1804.8,1.10835]
[1743393917630,3.2078,1804.9,1804.8,1.10835]
[1743393919637,3.2078,1804.9,1804.8,2.52155]
[1743393920339,3.2078,1804.9,1804.8,3.20715]
[1743393920532,3.2078,1804.9,1804.8,3.89925]
[1743393920938,3.2078,1804.9,1804.8,2.48605]
[1743393921240,3.2078,1804.9,1804.8,1.80045]
[1743393921735,1.3768,1805.0,1804.9,1.10829]
[1743393923844,4.5846,1805.0,1804.9,1.10829]
[1743393924139,5.69286,1805.0,1804.8,1.10833]
[1743393924336,1.10835,1804.8,1804.7,0.00832663]
[1743393924537,3.2078,1804.8,1804.7,1.11671663]
[1743393924845,5.346,1804.8,1804.7,1.11671663]
[1743393925144,6.45435,1804.8,1804.7,0.00832663]
[1743393925337,5.346,1804.8,1804.7,1.11673663]
[1743393925537,6.45435,1804.8,1804.7,0.00832663]
[1743393925941,6.45435,1804.8,1804.3,0.7415]
[1743393925942,7.846,1804.8,1804.2,0.7307]
[1743393926139,4.31628,1804.6,1804.4,1.10854]
[1743393926444,0.7058,1804.5,1804.4,1.10854]
[1743393927834,0.7058,1804.5,1804.3,0.00832663]
[1743393927835,1.1086,1804.4,1804.3,0.00832663]
[1743393928036,3.9451,1804.4,1804.3,1.11698663]
[1743393928443,3.2078,1804.4,1804.3,1.11698663]
[1743393928650,3.2078,1805.2,1805.1,1.10817]
[1743393929540,5.77692,1805.2,1804.8,3.827]
[1743393929742,3.2078,1805.0,1804.9,1.10825]
[1743393930134,4.6688,1805.0,1804.9,1.10825]
[1743393936351,1.461,1805.0,1804.9,1.10825]
[1743393937450,4.6688,1805.0,1804.9,1.10825]
[1743393938052,4.6688,1805.0,1804.6,1.10845]
[1743393938250,3.2078,1804.8,1804.5,1.1085]
[1743393938551,3.93533,1804.7,1804.6,1.10847]
[1743393938764,6.0347,1804.7,1804.6,1.10847]
[1743393939064,7.14311,1804.7,1804.5,1.10849]
[1743393939270,1.3873,1804.6,1804.5,1.10849]
[1743393939660,2.49577,1804.6,1804.4,4.93555]
[1743393939964,3.2078,1804.5,1804.4,4.93555]
[1743393940152,1.1086,1804.4,1804.3,0.00832663]
[1743393940358,9.5348,1804.5,1803.9,1.10889]
[1743393940559,3.2078,1804.0,1803.9,1.10889]
[1743393941159,3.2078,1804.0,1803.6,1.375]
[1743393941467,0.00832663,1804.5,1803.6,1.375]
[1743393941468,3.2078,1804.3,1804.2,1.10867]
[1743393941862,3.2078,1804.3,1804.0,1.10884]
[1743393942061,3.2078,1804.1,1803.9,1.10887]
[1743393942360,3.2078,1804.1,1803.8,1.10891]
[1743393942561,3.2078,1803.9,1803.8,4.93591]
[1743393942864,3.2078,1803.9,1803.8,1.10891]
[1743393943869,4.6619,1803.9,1803.8,1.10891]
[1743393947466,5.77081,1803.9,1803.7,1.10898]
[1743393947673,5.3504,1803.9,1803.6,0.00832663]
[1743393947871,4.31683,1803.7,1803.6,0.00832663]
[1743393948073,3.2078,1803.7,1803.6,1.11741663]
[1743393948574,5.432,1803.7,1803.6,1.11741663]
[1743393950168,4.6916,1803.7,1803.6,1.11741663]
[1743393950368,1.4838,1803.7,1803.6,1.11741663]
[1743393952277,1.4838,1803.7,1803.6,4.94541663]
[1743393961583,3.2078,1804.0,1803.9,1.10889]
[1743393961780,4.31664,1804.0,1803.9,1.10889]
[1743393963183,3.2078,1804.0,1803.9,1.10889]
[1743393963380,5.82014,1804.0,1803.9,1.10889]
[1743393963885,5.82014,1804.0,1803.8,1.10893]
[1743393964182,1.5035,1803.9,1803.8,1.10893]
[1743393965981,2.6124,1803.9,1803.8,1.10893]
[1743393966178,2.1913,1803.9,1803.8,1.10893]
[1743393970980,1.5035,1803.9,1803.8,1.10893]
[1743393971181,1.5035,1803.9,1803.8,3.26163]
[1743393972194,3.2078,1804.1,1804.0,1.10884]
[1743393972779,3.2078,1804.1,1804.0,2.50064]
[1743393973790,3.21612663,1804.5,1804.0,7.37167]
[1743393973991,3.21612663,1804.5,1804.4,1.1086]
[1743393975983,4.67562663,1804.5,1804.4,1.1086]
[1743393976288,0.00832663,1804.5,1804.4,4.3164]
[1743393976593,0.00832663,1804.5,1804.4,1.1086]
[1743393979289,3.21612663,1804.5,1804.4,1.1086]
[1743393979687,4.70982663,1804.5,1804.4,1.1086]
[1743393980194,1.50202663,1804.5,1804.4,1.1086]
[1743393985387,1.10882,1804.1,1803.8,1.10892]
[1743393985587,4.596,1804.0,1803.5,2.1434]
[1743393985787,4.596,1804.0,1803.6,1.40532663]
[1743393985995,3.2078,1803.8,1803.6,1.11737663]
[1743393986292,3.2078,1803.8,1803.6,0.00832663]
[1743393986594,3.2078,1803.8,1803.7,1.10903]
[1743393986793,3.2078,1803.8,1803.6,1.11737663]
[1743393986993,3.2078,1803.8,1803.6,2.49267663]
[1743393987194,4.31679,1803.8,1803.6,1.38362663]
[1743393987499,4.31681,1803.8,1803.6,0.00832663]
[1743393987793,1.10903,1803.7,1803.6,0.00832663]
[1743393988095,5.7078,1803.8,1803.2,1.10931]
[1743393988295,4.31697,1803.5,1803.3,1.10927]
[1743393988488,3.2078,1803.5,1803.2,1.1093]
[1743393988797,4.31707,1803.3,1803.1,1.10937]
[1743393988984,1.4172,1803.2,1803.1,1.10937]
[1743393989897,1.4172,1803.2,1803.0,1.38362663]
[1743393990098,1.4172,1803.2,1803.1,1.1094]
[1743393992299,3.2078,1803.3,1803.0,1.38362663]
[1743393992300,3.2078,1803.3,1803.2,1.10933]
[1743393996097,4.7004,1803.3,1803.2,1.10933]
[1743393997098,5.80967,1803.3,1803.2,1.10933]
[1743393997305,4.7004,1803.3,1803.2,1.10933]
[1743393997805,5.80967,1803.3,1803.1,1.10935]
[1743393998103,2.2048,1803.2,1803.1,1.10935]
[1743393998604,2.2048,1803.2,1803.0,1.38362663]
[1743393998803,1.3993,1803.1,1803.0,2.49308663]
[1743393999004,1.3993,1803.1,1803.0,1.11778663]
[1743393999404,4.6071,1803.1,1803.0,1.11778663]
[1743393999605,5.2932,1803.1,1803.0,1.11778663]
[1743394004306,6.4026,1803.1,1803.0,0.00832663]
[1743394004505,1.10964,1802.7,1802.3,59.728]
[1743394004697,1.405,1802.6,1802.5,1.10975]
[1743394005101,2.0994,1802.6,1802.5,1.10975]
[1743394005297,1.405,1802.6,1802.5,1.10975]
[1743394005509,3.2078,1802.7,1802.6,1.1097]
[1743394006105,3.2078,1802.7,1802.4,0.00832663]
[1743394006410,2.826,1802.6,1802.5,1.10974]
[1743394006811,3.2078,1802.7,1802.6,1.1097]
[1743394009210,4.31746,1802.7,1802.5,1.10973]
[1743394009410,4.31745,1802.7,1802.5,1.10976]
[1743394010110,0.7329,1802.6,1802.5,1.10976]
[1743394013321,3.2078,1802.7,1802.6,1.1097]
[1743394014607,3.2078,1802.7,1802.6,1.8087]
[1743394018423,3.2078,1802.7,1802.6,2.5035]
[1743394019811,1.8361,1803.0,1802.7,2.77408]
[1743394019812,3.2078,1803.0,1802.7,2.77408]
[1743394020022,4.31717,1803.2,1802.7,4.23208]
[1743394020220,3.2078,1803.2,1803.1,1.1094]
[1743394020419,0.00832663,1803.4,1803.1,3.2078]
[1743394020619,1.435,1803.8,1803.7,1.10903]
[1743394020921,3.2078,1803.9,1803.8,2.56697]
[1743394021917,3.2078,1803.9,1803.7,0.00832663]
[1743394021918,1.10897,1803.8,1803.7,0.00832663]
[1743394022112,1.10911,1803.6,1803.4,1.10921]
[1743394022322,3.2078,1803.5,1803.4,1.10919]
[1743394023128,3.2078,1803.5,1803.3,2.56725]
[1743394023326,4.31698,1803.5,1803.3,2.57557663]
[1743394023524,3.2078,1803.5,1803.3,0.00832663]
[1743394023724,2.57361,1803.4,1803.3,0.00832663]
[1743394025631,4.06451,1803.4,1803.3,0.00832663]
[1743394029133,7.89351,1803.4,1803.3,0.00832663]
[1743394031527,6.7843,1803.4,1803.0,1.4596]
[1743394031741,4.3172,1803.1,1803.0,1.4596]
[1743394032129,3.2078,1803.1,1803.0,1.4596]
[1743394032328,4.3172,1803.1,1803.0,1.4596]
[1743394032832,1.10946,1803.0,1802.9,0.00832663]
[1743394033030,3.25726,1803.0,1802.9,0.00832663]
[1743394033327,3.98476,1803.0,1802.9,0.00832663]
[1743394034321,1.10976,1802.5,1802.4,0.6826]
[1743394034524,1.10976,1802.5,1802.3,1.10985]
[1743394034730,4.6039,1802.4,1802.3,1.10989]
[1743394035125,4.6039,1802.4,1801.9,89.49202]
[1743394035126,4.6039,1802.4,1801.9,30.8078]
[1743394035434,4.6039,1802.4,1801.1,9.736]
[1743394035435,3.2078,1802.0,1801.4,3.2078]
[1743394035630,3.2078,1801.6,1801.4,1.11044]
[1743394035931,3.2078,1801.6,1801.5,0.00832663]
[1743394036132,4.31812,1801.6,1801.5,0.00832663]
[1743394037033,6.81812,1801.6,1801.5,0.00832663]
[1743394037233,4.31812,1801.6,1801.5,0.00832663]
[1743394037639,3.2078,1801.6,1801.0,1.11066]
[1743394037836,4.31835,1801.3,1801.0,1.11066]
[1743394038038,4.31831,1801.3,1801.0,1.11066]
[1743394038935,4.31831,1801.3,1801.0,1.11622106]
[1743394038936,4.32664663,1801.3,1801.0,1.11622106]
[1743394040043,3.21612663,1801.3,1801.1,1.11061]
[1743394040732,3.21612663,1801.3,1801.1,1.11063]
[1743394041140,3.21612663,1801.3,1801.2,1.11057]
[1743394044545,3.21612663,1801.3,1801.0,0.00555106]
[1743394044736,4.32663663,1801.3,1801.1,1.11061]
[1743394045341,3.21612663,1801.3,1801.1,1.11061]
[1743394045541,3.21612663,1801.3,1801.2,1.11057]
[1743394046443,3.21612663,1801.3,1801.1,2.61129]
[1743394046645,4.32666663,1801.3,1801.1,1.5007]
[1743394046836,1.11057,1801.2,1801.1,1.5007]
[1743394047341,1.11057,1801.2,1801.0,1.11621106]
[1743394047342,1.11063,1801.1,1801.0,0.00555106]
[1743394047548,4.31843,1801.1,1801.0,0.00555106]
[1743394049544,3.2078,1801.1,1801.0,0.00555106]
[1743394049942,3.2078,1801.1,1801.0,1.11624106]
[1743394050249,0.00832663,1801.3,1801.2,1.11057]
[1743394050946,0.00832663,1801.3,1801.2,2.60417]
[1743394052449,3.21612663,1801.3,1801.2,2.60417]
[1743394052649,3.21612663,1801.3,1801.2,1.4936]
[1743394052850,3.21612663,1801.3,1801.2,2.60417]
[1743394053244,4.32666663,1801.3,1801.1,2.49671]
[1743394053545,3.21612663,1801.3,1801.2,1.11057]
[1743394053751,4.32664663,1801.3,1801.1,3.99879]
[1743394053950,3.21612663,1801.3,1801.2,2.61267]
[1743394054351,4.32662663,1801.3,1801.2,1.5021]
[1743394058451,0.00832663,1801.3,1801.2,2.61267]
[1743394059952,0.00832663,1801.3,1801.2,1.5021]
[1743394060143,1.45532663,1801.3,1801.2,2.61267]
[1743394060347,0.00832663,1801.3,1801.2,2.61267]
[1743394061444,1.11022,1801.8,1801.7,1.11026]
[1743394061445,3.2078,1801.8,1801.7,1.11026]
[1743394061854,1.447,1802.1,1802.0,1.11007]
[1743394063754,3.21612663,1802.2,1802.1,1.11001]
[1743394063957,4.60162663,1802.2,1802.1,1.11001]
[1743394064457,5.71157663,1802.2,1802.1,1.5095]
[1743394064761,1.11001,1802.1,1802.0,0.00832663]
[1743394064950,1.3855,1802.1,1802.0,0.00832663]
[1743394066354,1.3855,1802.1,1802.0,1.11839663]
[1743394067758,2.49551,1802.1,1802.0,0.00832663]
[1743394067957,1.3855,1802.1,1802.0,0.00832663]
[1743394068257,2.49551,1802.1,1802.0,0.00832663]
[1743394069057,2.49551,1802.1,1802.0,1.11839663]
[1743394069257,1.3855,1802.1,1802.0,1.11839663]
[1743394069660,2.49551,1802.1,1802.0,0.00832663]
[1743394070362,1.3855,1802.1,1802.0,1.11839663]
[1743394070659,1.3855,1802.1,1802.0,0.00832663]
[1743394070860,1.3855,1802.1,1802.0,1.11839663]
[1743394073258,3.21612663,1802.2,1802.1,1.11001]
[1743394073462,3.21612663,1802.2,1802.1,2.56351]
[1743394073667,3.2078,1802.5,1802.4,1.10983]
[1743394073962,4.7091,1802.5,1802.4,1.10983]
[1743394074462,3.2078,1802.5,1802.4,1.10983]
[1743394074763,4.7091,1802.7,1802.6,1.1097]
[1743394075863,5.81874,1802.7,1802.5,1.10972]
[1743394076057,4.7091,1802.7,1802.5,1.10972]
[1743394076257,4.7091,1802.7,1802.6,1.1097]
[1743394078165,3.2078,1802.7,1802.6,1.1097]
[1743394078365,3.2078,1802.7,1802.6,3.9212]
[1743394078562,0.00832663,1802.8,1802.7,1.10964]
[1743394078762,0.00832663,1802.8,1802.7,2.51104]
[1743394078963,1.48562663,1802.8,1802.7,2.51104]
[1743394080264,0.00832663,1802.8,1802.7,2.51104]
[1743394081069,3.9332,1803.2,1803.1,1.1094]
[1743394081269,3.2078,1803.2,1803.1,1.1094]
[1743394082269,3.2078,1803.2,1803.1,2.6021]
[1743394083267,4.6837,1803.2,1803.0,0.00832663]
[1743394083460,2.5851,1803.1,1803.0,0.00832663]
[1743394083665,4.061,1803.1,1803.0,0.00832663]
[1743394086378,2.9516,1803.1,1803.0,0.00832663]
[1743394086578,2.2289,1803.1,1803.0,1.11778663]
[1743394087280,1.4759,1803.1,1803.0,1.11778663]
[1743394087975,1.4759,1803.1,1803.0,2.55058663]
[1743394089686,0.00832663,1803.3,1803.0,1.44112663]
[1743394089973,0.00832663,1803.3,1803.2,1.10933]
[1743394090180,3.2078,1803.6,1803.5,1.10915]
[1743394090380,4.7093,1803.6,1803.5,1.10915]
[1743394090770,4.7093,1803.6,1803.5,2.59985]
[1743394090970,4.7093,1803.6,1803.4,3.827]
[1743394091182,4.7093,1803.6,1803.5,1.10915]
[1743394091376,4.7093,1803.6,1803.5,2.59985]
[1743394091578,3.2078,1803.6,1803.5,2.59985]
[1743394092272,0.00832663,1803.7,1803.6,1.10909]
[1743394092584,0.00832663,1803.7,1803.6,1.79929]
[1743394093288,3.2078,1803.9,1803.8,1.10897]
[1743394093585,1.5015,1804.1,1804.0,1.10884]
[1743394094578,1.5015,1804.1,1803.9,1.3712]
[1743394094885,1.5015,1804.1,1803.9,1.1089]
[1743394094886,3.2078,1804.0,1803.9,1.1089]
[1743394095080,3.2078,1804.0,1803.8,1.3712]
[1743394095283,4.31667,1804.0,1803.8,2.48013]
[1743394095478,3.2078,1804.0,1803.8,2.48013]
[1743394095989,4.31665,1804.0,1803.8,2.48013]
[1743394096184,4.31665,1804.0,1803.8,1.10896]
[1743394096185,4.31667,1804.0,1803.8,1.10896]
[1743394096391,4.31666,1804.0,1803.8,1.10895]
[1743394096591,3.2078,1804.0,1803.7,5.952]
[1743394096791,3.2078,1804.0,1803.8,1.10893]
[1743394097091,4.31665,1804.0,1803.8,1.10893]
[1743394097293,3.2078,1804.0,1803.7,7.06098]
[1743394097496,5.01017,1804.0,1803.8,1.10896]
[1743394098696,3.9013,1804.0,1803.7,7.06099]
[1743394098897,5.01018,1804.0,1803.8,1.10895]
[1743394099400,3.9013,1804.0,1803.7,7.06098]
[1743394099586,3.2078,1803.8,1803.7,7.06098]
[1743394099789,3.2078,1803.8,1803.7,3.826]
[1743394099991,3.2078,1803.8,1803.7,4.93503]
[1743394100192,3.2078,1803.8,1803.6,1.79925]
[1743394100394,3.2078,1803.8,1803.7,1.10903]
[1743394100899,4.31679,1803.8,1803.6,5.62424]
[1743394101098,1.10903,1803.7,1803.5,2.59653]
[1743394101300,4.31693,1803.6,1803.4,1.81628]
[1743394101502,5.01433,1803.6,1803.4,1.10918]
[1743394102000,1.10933,1803.2,1803.1,0.7071]
[1743394102295,1.1094,1803.1,1803.0,0.00832663]
[1743394102500,1.8572,1803.1,1803.0,0.00832663]
[1743394103898,0.7478,1803.1,1803.0,0.00832663]
[1743394104088,3.21612663,1803.2,1803.1,1.1094]
[1743394104495,3.21612663,1803.2,1803.1,2.6098]
[1743394104696,3.21612663,1803.2,1803.1,3.3575]
[1743394105495,0.00832663,1803.2,1803.1,10.71247114]
[1743394105801,0.00832663,1803.2,1803.1,3.3575]
[1743394106899,1.44072663,1803.2,1803.1,3.3575]
[1743394109094,4.64852663,1803.2,1803.0,0.00832663]
[1743394109402,4.64852663,1803.2,1803.1,1.1094]
[1743394110098,1.44072663,1803.2,1803.1,1.1094]
[1743394110305,0.00832663,1803.2,1803.1,1.1094]
[1743394110496,0.00832663,1803.2,1803.1,3.6094]
[1743394111295,3.2078,1803.4,1803.3,1.10927]
[1743394111497,4.6403,1803.7,1803.6,1.10909]
[1743394112905,3.2078,1803.7,1803.6,4.93409]
[1743394113604,3.2078,1803.7,1803.4,2.1267]
[1743394113605,4.31683,1803.7,1803.4,2.1267]
[1743394113799,1.46,1803.6,1803.4,5.9507]
[1743394114004,1.10915,1803.5,1803.4,1.4187]
[1743394114298,3.2078,1803.5,1803.2,3.824]
[1743394114503,3.2078,1803.3,1803.2,4.93333]
[1743394114708,4.31707,1803.3,1803.2,3.824]
[1743394114894,1.10935,1803.2,1803.0,1.11775663]
[1743394115098,3.8953,1803.2,1803.1,1.1094]
[1743394116207,5.00463,1803.2,1803.0,2.50924663]
[1743394116803,3.8953,1803.2,1803.0,1.39982663]
[1743394117003,5.00468,1803.2,1803.0,0.00832663]
[1743394117204,5.00468,1803.2,1803.0,1.11778663]
[1743394118809,3.8953,1803.2,1803.0,1.11778663]
[1743394120012,3.8953,1803.2,1803.1,1.1094]
[1743394120611,5.00463,1803.2,1803.0,1.11774663]
[1743394120812,1.1094,1803.1,1803.0,0.00832663]
[1743394122209,5.00468,1803.2,1803.0,1.11778663]
[1743394122409,1.1094,1803.1,1803.0,0.00832663]
[1743394126014,2.619,1803.1,1803.0,0.00832663]
[1743394132129,1.10967,1802.7,1802.5,0.6835]
[1743394132327,1.5029,1802.6,1802.5,1.79326]
[1743394132520,3.2078,1802.8,1802.5,0.6835]
[1743394132716,1.5029,1802.9,1802.8,1.10958]
[1743394133316,1.5029,1802.9,1802.8,2.47108]
[1743394133526,4.7107,1802.9,1802.8,2.47108]
[1743394135128,1.5029,1802.9,1802.8,2.47108]
[1743394135330,4.7107,1802.9,1802.8,2.47108]
[1743394135528,1.5029,1802.9,1802.8,2.47108]
[1743394136326,4.7107,1802.9,1802.8,2.47108]
[1743394136530,5.82022,1802.9,1802.8,1.10958]
[1743394136732,4.7107,1802.9,1802.8,1.10958]
[1743394137131,1.5029,1802.9,1802.8,1.10958]
[1743394137631,4.7107,1802.9,1802.8,1.10958]
[1743394139635,4.7107,1802.9,1802.8,2.60388]
[1743394140434,1.5029,1802.9,1802.8,2.60388]
[1743394140929,3.2078,1803.2,1803.1,1.1094]
[1743394141527,3.2078,1803.2,1803.1,3.2854]
[1743394142030,4.31713,1803.2,1803.1,1.4446]
[1743394142230,1.1094,1803.1,1802.9,0.7385]
[1743394142437,4.5858,1803.0,1802.8,4.5554]
[1743394142629,4.5858,1803.0,1802.8,7.10958]
[1743394142630,1.378,1802.9,1802.8,7.10958]
[1743394142832,1.378,1802.9,1802.8,3.28558]
[1743394143132,2.48752,1802.9,1802.8,2.176]
[1743394143339,2.48752,1802.9,1802.8,1.4446]
[1743394143533,1.10958,1802.8,1802.7,0.00832663]
[1743394143837,4.5858,1802.8,1802.7,0.00832663]
[1743394144035,3.2078,1803.0,1802.8,1.10945]
[1743394144336,4.31715,1803.0,1802.8,1.10945]
[1743394144536,5.72125,1803.0,1802.9,1.3733]
[1743394144838,3.2078,1803.0,1802.9,1.3733]
[1743394145735,3.2078,1803.0,1802.9,2.48271]
[1743394146632,3.2078,1803.2,1802.9,1.3733]
[1743394146838,3.2078,1803.2,1803.1,1.10928]
[1743394147026,5.06772,1803.4,1803.2,1.10922]
[1743394147540,3.2078,1803.4,1803.3,2.48246]
[1743394149743,1.4211,1803.8,1803.3,4.5811]
[1743394149940,1.4211,1803.8,1803.6,1.10895]
[1743394150142,2.52995,1803.8,1803.6,1.10895]
[1743394150342,0.738,1803.8,1803.7,2.47642]
[1743394150541,0.738,1803.8,1803.7,1.3675]
[1743394150930,3.2078,1803.9,1803.8,1.10885]
[1743394151137,1.10867,1804.1,1803.9,1.10878]
[1743394151434,3.2078,1804.0,1803.9,1.10878]
[1743394151635,3.2078,1804.0,1803.9,2.56468]
[1743394152642,4.6249,1804.2,1803.9,1.4559]
[1743394152942,3.2078,1804.2,1804.1,1.10867]
[1743394153136,3.2078,1804.4,1804.2,1.10855]
[1743394153336,3.2078,1804.4,1804.3,2.56445]
[1743394153738,3.2078,1804.4,1804.3,1.4559]
[1743394154145,4.31629,1804.4,1804.3,1.4559]
[1743394154346,3.2078,1804.4,1804.2,1.10859]
[1743394154546,3.2078,1804.4,1804.2,2.53759]
[1743394155046,1.10855,1804.3,1804.2,1.429]
[1743394155341,4.31631,1804.4,1804.2,1.429]
[1743394155746,1.4044,1804.3,1804.2,1.429]
[1743394156046,1.4044,1804.3,1804.2,2.53761]
[1743394156349,2.51295,1804.3,1804.2,1.429]
[1743394156551,1.4044,1804.3,1804.2,1.10861]
[1743394156845,1.4044,1804.3,1804.2,2.56031]
[1743394158149,3.2078,1804.4,1804.3,1.10855]
[1743394158347,1.4729,1804.6,1804.5,1.10842]
[1743394158550,3.9418,1804.8,1804.6,1.4517]
[1743394158740,1.4729,1804.7,1804.6,2.56003]
[1743394158940,3.2078,1804.8,1804.7,1.1083]
[1743394159139,3.2078,1804.8,1804.7,2.56]
[1743394159541,1.4729,1804.8,1804.7,2.56]
[1743394160047,1.4729,1804.8,1804.7,1.4517]
[1743394160247,1.4729,1804.8,1804.7,2.56]
[1743394160442,4.6807,1804.8,1804.7,1.4517]
[1743394160942,4.6807,1804.8,1804.7,2.56]
[1743394161141,1.4729,1804.8,1804.7,2.56]
[1743394162345,3.8893,1805.0,1804.7,1.4517]
[1743394162544,1.4662,1804.9,1804.7,1.4517]
[1743394162847,1.4662,1804.9,1804.8,1.10824]
[1743394163043,1.4662,1804.9,1804.7,2.56826663]
[1743394163243,4.31604,1804.8,1804.7,1.46002663]
[1743394164350,3.2078,1804.8,1804.7,2.56832663]
[1743394164646,2.57438,1804.9,1804.7,2.56832663]
[1743394165049,2.57442,1804.9,1804.7,2.56832663]
[1743394165653,1.10824,1804.8,1804.7,1.46002663]
[1743394165855,2.51254,1804.8,1804.7,1.46002663]
[1743394166046,1.4043,1804.8,1804.7,1.46002663]
[1743394166348,1.4043,1804.8,1804.7,2.56832663]
[1743394166555,1.4043,1804.8,1804.7,1.46002663]
[1743394166855,4.31596,1805.0,1804.8,1.10824]
[1743394167055,5.72026,1805.0,1804.9,1.4312]
[1743394167754,4.6121,1805.0,1804.9,2.53938]
[1743394168145,3.2078,1805.0,1804.9,2.53938]
[1743394168350,1.4043,1805.2,1805.1,1.10806]
[1743394168554,1.4043,1805.2,1805.0,2.53927]
[1743394168755,2.51229,1805.2,1805.1,1.4502]
[1743394169147,1.4043,1805.2,1805.1,2.55826]
[1743394173357,1.4043,1805.2,1804.8,8.4888]
[1743394173546,1.10812,1805.0,1804.8,5.279]
[1743394173751,4.3159,1805.1,1804.9,2.59768]
[1743394174653,1.10812,1805.0,1804.9,2.59768]
[1743394174957,1.10814,1805.0,1804.8,6.3872]
[1743394175452,1.10818,1804.9,1804.8,5.279]
[1743394175656,1.10818,1804.9,1804.7,2.61610663]
[1743394175657,4.31601,1804.9,1804.7,2.61610663]
[1743394177248,3.2078,1804.9,1804.7,1.50782663]
[1743394177455,3.2078,1804.9,1804.7,0.00832663]
[1743394177658,1.10822,1804.9,1804.7,2.61610663]
[1743394177861,1.10824,1804.8,1804.7,2.61610663]
[1743394178564,1.10824,1804.8,1804.7,1.50782663]
[1743394178761,4.31602,1804.9,1804.7,2.61612663]
[1743394178962,1.10824,1804.8,1804.7,1.50782663]
[1743394179161,1.10824,1804.8,1804.7,0.00832663]
[1743394180663,1.10857,1804.3,1804.1,4.92562]
[1743394180852,1.10857,1804.3,1804.2,1.3844]
[1743394181564,0.6871,1804.4,1804.2,1.3844]
[1743394181765,1.80391663,1804.4,1804.2,2.49296]
[1743394182063,1.80395663,1804.4,1804.1,3.82532663]
[1743394182265,1.80395663,1804.4,1804.1,6.31834663]
[1743394182563,1.80395663,1804.4,1804.2,1.10861]
[1743394182866,1.80395663,1804.4,1804.2,2.49301]
[1743394183564,1.10855,1804.3,1804.2,1.3844]
[1743394183760,1.10855,1804.3,1804.1,0.00832663]
[1743394183963,1.10855,1804.3,1804.1,3.82632663]
[1743394184163,1.10855,1804.3,1804.1,6.40688663]
[1743394184364,2.53885663,1804.4,1804.1,5.29822663]
[1743394184666,1.80395663,1804.4,1804.2,2.58046]
[1743394184861,1.80395663,1804.4,1804.3,1.4719]
[1743394185664,0.69542663,1804.4,1804.3,1.4719]
[1743394185865,2.06712663,1804.4,1804.3,1.4719]
[1743394186164,3.17561663,1804.4,1804.3,1.4719]
[1743394186369,1.10856,1804.3,1804.1,4.93495663]
[1743394186557,1.10856,1804.3,1804.2,1.4719]
[1743394187356,1.80393663,1804.4,1804.2,2.58051]
[1743394187558,1.80393663,1804.4,1804.2,1.4719]
[1743394187759,1.10855,1804.3,1804.2,1.4719]
[1743394188667,1.80394663,1804.4,1804.2,2.58051]
[1743394188867,1.10855,1804.3,1804.2,1.4719]
[1743394191064,0.00832663,1804.4,1804.3,1.10855]
[1743394191271,0.00832663,1804.4,1804.3,1.81375]
[1743394191568,3.2078,1804.8,1804.3,9.98087823]
[1743394191767,4.31606,1804.8,1804.6,1.10833]
[1743394191970,4.31606,1804.8,1804.7,1.4475]
[1743394192270,3.2078,1804.8,1804.7,2.5558]